[Event "Early-Titled-Tuesday-Blitz-February-13-2024"]
[Site "Chess.com"]
[Date "2024.02.13"]
[Round "8"]
[White "mr_gustavo"]
[Black "Dinamo3"]
[Result "1-0"]
[WhiteElo "2733"]
[BlackElo "2530"]
[TimeControl "180+1"]
[EndTime "9:33:03 PST"]
[Termination "mr_gustavo won by resignation"]

1. b3 {[%clk 0:03:00.9]} 1... Nf6 {[%clk 0:02:55]} 2. Bb2 {[%clk 0:03:01.8]}
2... g6 {[%clk 0:02:55.6]} 3. c4 {[%clk 0:02:58.6]} 3... Bg7 {[%clk 0:02:55.4]}
4. Nf3 {[%clk 0:02:56.7]} 4... O-O {[%clk 0:02:55.3]} 5. e3 {[%clk 0:02:53.8]}
5... d6 {[%clk 0:02:53.9]} 6. Nc3 {[%clk 0:02:50.8]} 6... c5 {[%clk 0:02:48.6]}
7. Be2 {[%clk 0:02:50.6]} 7... Nc6 {[%clk 0:02:45.6]} 8. O-O {[%clk 0:02:43.2]}
8... d5 {[%clk 0:02:32.5]} 9. cxd5 {[%clk 0:02:42.9]} 9... Nxd5 {[%clk
0:02:32.8]} 10. Rc1 {[%clk 0:02:42.8]} 10... b6 {[%clk 0:02:07.5]} 11. Nxd5
{[%clk 0:02:38.3]} 11... Qxd5 {[%clk 0:02:07.6]} 12. Qc2 {[%clk 0:02:31]} 12...
Bxb2 {[%clk 0:01:59.3]} 13. Qxb2 {[%clk 0:02:30.5]} 13... Bb7 {[%clk 0:01:53]}
14. Rfd1 {[%clk 0:02:26.6]} 14... Rfd8 {[%clk 0:01:42.3]} 15. a3 {[%clk
0:02:26]} 15... Rac8 {[%clk 0:01:41.9]} 16. b4 {[%clk 0:02:25.6]} 16... cxb4
{[%clk 0:01:40.1]} 17. axb4 {[%clk 0:02:26.5]} 17... Qd6 {[%clk 0:01:13.4]} 18.
b5 {[%clk 0:02:16.2]} 18... Na5 {[%clk 0:01:13.1]} 19. d4 {[%clk 0:02:08.4]}
19... Rxc1 {[%clk 0:01:08.6]} 20. Rxc1 {[%clk 0:02:06.5]} 20... Rc8 {[%clk
0:01:09.2]} 21. Rxc8+ {[%clk 0:02:01.9]} 21... Bxc8 {[%clk 0:01:10.1]} 22. Ne5
{[%clk 0:02:01.1]} 22... f6 {[%clk 0:01:04.6]} 23. Nc4 {[%clk 0:01:57.6]} 23...
Nxc4 {[%clk 0:01:01.8]} 24. Bxc4+ {[%clk 0:01:55.7]} 24... Kg7 {[%clk
0:01:02.4]} 25. h3 {[%clk 0:01:54.7]} 25... Qc7 {[%clk 0:01:02.8]} 26. Qa2
{[%clk 0:01:47.6]} 26... Bd7 {[%clk 0:00:51.9]} 27. g3 {[%clk 0:01:41.8]} 27...
Be8 {[%clk 0:00:34.5]} 28. h4 {[%clk 0:01:38.2]} 28... h5 {[%clk 0:00:34.5]} 29.
Kh2 {[%clk 0:01:37.1]} 29... Bd7 {[%clk 0:00:35]} 30. Qb3 {[%clk 0:01:33.4]}
30... Be8 {[%clk 0:00:35.1]} 31. Be6 {[%clk 0:01:29.8]} 31... Bd7 {[%clk
0:00:33.2]} 32. Qd5 {[%clk 0:01:24.5]} 32... Bxe6 {[%clk 0:00:30.1]} 33. Qxe6
{[%clk 0:01:25.4]} 33... Kf8 {[%clk 0:00:30.6]} 34. Qd5 {[%clk 0:01:16.3]} 34...
Qc2 {[%clk 0:00:23.2]} 35. Kg2 {[%clk 0:01:14]} 35... Qa4 {[%clk 0:00:20.4]} 36.
Qc6 {[%clk 0:01:07.3]} 36... Qa3 {[%clk 0:00:17]} 37. d5 {[%clk 0:01:02]} 37...
Kg7 {[%clk 0:00:16.4]} 38. e4 {[%clk 0:00:50.1]} 38... Qb4 {[%clk 0:00:16.6]}
39. Qe6 {[%clk 0:00:41.6]} 39... Kf8 {[%clk 0:00:16.8]} 40. g4 {[%clk
0:00:29.2]} 40... Qxb5 {[%clk 0:00:13.8]} 41. d6 {[%clk 0:00:18.7]} 41... exd6
{[%clk 0:00:08.1]} 42. Qxf6+ {[%clk 0:00:18.6]} 42... Ke8 {[%clk 0:00:08.3]} 43.
Qxg6+ {[%clk 0:00:19.2]} 43... Kd7 {[%clk 0:00:08.9]} 44. gxh5 {[%clk
0:00:19.6]} 44... Qe5 {[%clk 0:00:03.6]} 45. h6 {[%clk 0:00:19.2]} 45... Kc6
{[%clk 0:00:04.2]} 46. h7 {[%clk 0:00:18.8]} 46... a5 {[%clk 0:00:03.7]} 47. f3
{[%clk 0:00:14.7]} 47... a4 {[%clk 0:00:03.5]} 48. Qg8 {[%clk 0:00:14.6]} 48...
Qb2+ {[%clk 0:00:03.6]} 49. Kg3 {[%clk 0:00:14.4]} 49... Qe5+ {[%clk 0:00:03.8]}
50. Kh3 {[%clk 0:00:14.7]} 50... Qa1 {[%clk 0:00:01.9]} 51. h8=Q {[%clk
0:00:12.5]} 51... Qh1+ {[%clk 0:00:02.1]} 52. Kg4 {[%clk 0:00:13.2]} 52... Qg2+
{[%clk 0:00:02.8]} 53. Kf4 {[%clk 0:00:12.6]} 53... Qd2+ {[%clk 0:00:02.9]} 54.
Kf5 {[%clk 0:00:12.6]} 54... Qd3 {[%clk 0:00:01.1]} 55. Qd5+ {[%clk 0:00:09.5]}
55... Qxd5+ {[%clk 0:00:01.3]} 56. exd5+ {[%clk 0:00:10.4]} 56... Kxd5 {[%clk
0:00:02.2]} 57. Qa1 {[%clk 0:00:10.2]} 57... b5 {[%clk 0:00:03.1]} 58. h5 {[%clk
0:00:08.9]} 58... Kc4 {[%clk 0:00:04]} 59. h6 {[%clk 0:00:09.8]} 1-0

[Event "Early-Titled-Tuesday-Blitz-February-13-2024"]
[Site "Chess.com"]
[Date "2024.02.13"]
[Round "8"]
[White "FGHSMN"]
[Black "CaspiIsrael"]
[Result "1-0"]
[WhiteElo "2986"]
[BlackElo "2778"]
[TimeControl "180+1"]
[EndTime "9:33:06 PST"]
[Termination "FGHSMN won by resignation"]

1. e4 {[%clk 0:03:00.9]} 1... e5 {[%clk 0:03:00]} 2. Nf3 {[%clk 0:03:01.1]} 2...
Nc6 {[%clk 0:03:00.1]} 3. Nc3 {[%clk 0:03:00.9]} 3... Nf6 {[%clk 0:03:00.1]} 4.
Bb5 {[%clk 0:03:01.3]} 4... Nd4 {[%clk 0:02:59.1]} 5. O-O {[%clk 0:02:59.9]}
5... Nxb5 {[%clk 0:02:53.1]} 6. Nxb5 {[%clk 0:03:00.4]} 6... c6 {[%clk
0:02:53.1]} 7. Nc3 {[%clk 0:02:58.1]} 7... d6 {[%clk 0:02:53.4]} 8. d4 {[%clk
0:02:56.6]} 8... Qc7 {[%clk 0:02:54]} 9. Bg5 {[%clk 0:02:55.7]} 9... Be7 {[%clk
0:02:54.2]} 10. d5 {[%clk 0:02:55.8]} 10... O-O {[%clk 0:02:50.3]} 11. Qd3
{[%clk 0:02:54.4]} 11... h6 {[%clk 0:02:49.9]} 12. Bxf6 {[%clk 0:02:53.5]} 12...
Bxf6 {[%clk 0:02:50]} 13. a4 {[%clk 0:02:53.9]} 13... a5 {[%clk 0:02:39.6]} 14.
h3 {[%clk 0:02:49.3]} 14... Bg5 {[%clk 0:02:32.1]} 15. Nxg5 {[%clk 0:02:40]}
15... hxg5 {[%clk 0:02:32]} 16. Rfd1 {[%clk 0:02:40.6]} 16... Rd8 {[%clk
0:02:30.2]} 17. Qe3 {[%clk 0:02:28.9]} 17... f6 {[%clk 0:02:29.1]} 18. Rd2
{[%clk 0:02:28.3]} 18... Bd7 {[%clk 0:02:21.4]} 19. Rad1 {[%clk 0:02:18.6]}
19... c5 {[%clk 0:02:19]} 20. Qg3 {[%clk 0:02:17.5]} 20... Kf7 {[%clk
0:02:15.4]} 21. Qe3 {[%clk 0:01:59.6]} 21... Rh8 {[%clk 0:02:12.3]} 22. f3
{[%clk 0:01:59.5]} 22... Ra6 {[%clk 0:02:08.3]} 23. b3 {[%clk 0:01:47.8]} 23...
Rc8 {[%clk 0:02:01.4]} 24. Rb1 {[%clk 0:01:40.2]} 24... Rb6 {[%clk 0:01:59.3]}
25. Rdd1 {[%clk 0:01:33.1]} 25... Kg6 {[%clk 0:01:48.6]} 26. Ne2 {[%clk
0:01:30.1]} 26... c4 {[%clk 0:01:40.6]} 27. Kf2 {[%clk 0:00:59.8]} 27... Rb4
{[%clk 0:01:35.9]} 28. Rdc1 {[%clk 0:00:50.4]} 28... Qc5 {[%clk 0:01:33.5]} 29.
Qxc5 {[%clk 0:00:49.2]} 29... Rxc5 {[%clk 0:01:34.4]} 30. Ke3 {[%clk 0:00:48.1]}
30... f5 {[%clk 0:01:18.2]} 31. g4 {[%clk 0:00:43.2]} 31... f4+ {[%clk
0:01:05.3]} 32. Kd2 {[%clk 0:00:42.2]} 32... c3+ {[%clk 0:00:55.3]} 33. Ke1
{[%clk 0:00:42.1]} 33... b5 {[%clk 0:00:54.2]} 34. axb5 {[%clk 0:00:42.9]} 34...
Bxb5 {[%clk 0:00:55]} 35. Ra1 {[%clk 0:00:43.2]} 35... Ba6 {[%clk 0:00:48.2]}
36. Ra3 {[%clk 0:00:39.6]} 36... Kf6 {[%clk 0:00:20.6]} 37. Rca1 {[%clk
0:00:36.5]} 37... Bxe2 {[%clk 0:00:21.2]} 38. Kxe2 {[%clk 0:00:37.3]} 38... Rd4
{[%clk 0:00:21.8]} 39. Rd1 {[%clk 0:00:33.4]} 39... Rxd1 {[%clk 0:00:21.7]} 40.
Kxd1 {[%clk 0:00:33.7]} 40... Ke7 {[%clk 0:00:22.3]} 41. Ke2 {[%clk 0:00:32.7]}
41... Kd7 {[%clk 0:00:22.9]} 42. Kd3 {[%clk 0:00:33]} 42... Kc7 {[%clk
0:00:23.4]} 43. Ra4 {[%clk 0:00:33]} 43... Kb6 {[%clk 0:00:21.3]} 44. Rc4 {[%clk
0:00:31.7]} 44... Rb5 {[%clk 0:00:05.4]} 45. Rc6+ {[%clk 0:00:30.4]} 45... Kb7
{[%clk 0:00:05.8]} 46. Rxd6 {[%clk 0:00:30.8]} 46... Rc5 {[%clk 0:00:06.3]} 47.
Rd7+ {[%clk 0:00:29.3]} 47... Kb6 {[%clk 0:00:06.4]} 48. Rxg7 {[%clk 0:00:29.9]}
48... Rc8 {[%clk 0:00:06.3]} 49. Rxg5 {[%clk 0:00:30.3]} 49... Rh8 {[%clk
0:00:06.8]} 50. Rh5 {[%clk 0:00:30.6]} 50... Rd8 {[%clk 0:00:05.6]} 51. Rxe5
{[%clk 0:00:30.5]} 51... Kc5 {[%clk 0:00:05.9]} 52. Kxc3 {[%clk 0:00:30]} 52...
Rh8 {[%clk 0:00:04.8]} 53. Rh5 {[%clk 0:00:29.8]} 53... Rf8 {[%clk 0:00:04.9]}
54. h4 {[%clk 0:00:28.4]} 54... Kd6 {[%clk 0:00:04.6]} 55. Rf5 {[%clk
0:00:28.5]} 55... Rc8+ {[%clk 0:00:04.9]} 56. Kd3 {[%clk 0:00:28.8]} 56... Rh8
{[%clk 0:00:05.5]} 57. h5 {[%clk 0:00:29.2]} 57... a4 {[%clk 0:00:04.8]} 58.
bxa4 {[%clk 0:00:29]} 58... Ra8 {[%clk 0:00:05.7]} 59. h6 {[%clk 0:00:28.3]}
59... Rxa4 {[%clk 0:00:05.8]} 60. h7 {[%clk 0:00:28.7]} 60... Ra8 {[%clk
0:00:06.2]} 61. g5 {[%clk 0:00:27.9]} 61... Rh8 {[%clk 0:00:05.8]} 62. g6 {[%clk
0:00:28.4]} 62... Rxh7 {[%clk 0:00:05.2]} 63. gxh7 {[%clk 0:00:28.5]} 1-0

[Event "Early-Titled-Tuesday-Blitz-February-13-2024"]
[Site "Chess.com"]
[Date "2024.02.13"]
[Round "8"]
[White "DvaHrasta"]
[Black "nekotyanof"]
[Result "0-1"]
[WhiteElo "2500"]
[BlackElo "2644"]
[TimeControl "180+1"]
[EndTime "9:33:06 PST"]
[Termination "nekotyanof won by checkmate"]

1. c4 {[%clk 0:03:00.9]} 1... g6 {[%clk 0:02:58.7]} 2. g3 {[%clk 0:03:00.4]}
2... Bg7 {[%clk 0:02:58.7]} 3. Bg2 {[%clk 0:03:00.7]} 3... Nf6 {[%clk
0:02:58.7]} 4. Nc3 {[%clk 0:03:00.9]} 4... c6 {[%clk 0:02:58.1]} 5. Nf3 {[%clk
0:03:00.7]} 5... O-O {[%clk 0:02:58]} 6. O-O {[%clk 0:03:00.3]} 6... d5 {[%clk
0:02:58.7]} 7. cxd5 {[%clk 0:03:00.5]} 7... Nxd5 {[%clk 0:02:58.1]} 8. d4 {[%clk
0:02:57.3]} 8... Nd7 {[%clk 0:02:56.6]} 9. e4 {[%clk 0:02:56.8]} 9... Nxc3
{[%clk 0:02:56.1]} 10. bxc3 {[%clk 0:02:57]} 10... Nb6 {[%clk 0:02:56.9]} 11.
Qe2 {[%clk 0:02:53]} 11... Be6 {[%clk 0:02:56.3]} 12. Rd1 {[%clk 0:02:52.5]}
12... Bc4 {[%clk 0:02:54.4]} 13. Qe1 {[%clk 0:02:52.3]} 13... Na4 {[%clk
0:02:45.1]} 14. Ne5 {[%clk 0:02:43.7]} 14... Ba6 {[%clk 0:02:02.4]} 15. Ba3
{[%clk 0:02:34.6]} 15... c5 {[%clk 0:02:02.2]} 16. f4 {[%clk 0:02:27.3]} 16...
Qc7 {[%clk 0:01:56.3]} 17. h4 {[%clk 0:02:16.5]} 17... Rad8 {[%clk 0:01:50.4]}
18. h5 {[%clk 0:02:14.8]} 18... cxd4 {[%clk 0:01:49.6]} 19. cxd4 {[%clk
0:02:13.5]} 19... Rfe8 {[%clk 0:01:42.7]} 20. Rac1 {[%clk 0:02:11.7]} 20... Qb6
{[%clk 0:01:39.6]} 21. Rb1 {[%clk 0:01:52.2]} 21... Qe6 {[%clk 0:01:36]} 22. Qb4
{[%clk 0:01:45.4]} 22... Nb6 {[%clk 0:01:28]} 23. hxg6 {[%clk 0:01:45.1]} 23...
hxg6 {[%clk 0:01:26.8]} 24. d5 {[%clk 0:01:43]} 24... Qd6 {[%clk 0:01:11.7]} 25.
Qxd6 {[%clk 0:01:37]} 25... exd6 {[%clk 0:01:11.8]} 26. Ng4 {[%clk 0:01:33.3]}
26... Be2 {[%clk 0:01:11.4]} 27. Ne3 {[%clk 0:01:22.6]} 27... Bxd1 {[%clk
0:01:11.2]} 28. Rxd1 {[%clk 0:01:21.1]} 28... f5 {[%clk 0:01:11.6]} 29. Bf3
{[%clk 0:01:07.2]} 29... fxe4 {[%clk 0:01:10.2]} 30. Bg4 {[%clk 0:01:07.1]}
30... Kf7 {[%clk 0:01:06.5]} 31. f5 {[%clk 0:01:01.4]} 31... Bh6 {[%clk
0:01:02.4]} 32. fxg6+ {[%clk 0:00:56.3]} 32... Kxg6 {[%clk 0:01:03.3]} 33. Nf5
{[%clk 0:00:55.5]} 33... Nc4 {[%clk 0:01:00.9]} 34. Bc1 {[%clk 0:00:48.6]} 34...
Bxc1 {[%clk 0:00:59]} 35. Rxc1 {[%clk 0:00:48.7]} 35... b5 {[%clk 0:00:57.2]}
36. Nd4 {[%clk 0:00:45]} 36... e3 {[%clk 0:00:53.2]} 37. Nxb5 {[%clk 0:00:40.2]}
37... e2 {[%clk 0:00:42.1]} 38. Kf2 {[%clk 0:00:35.4]} 38... e1=Q+ {[%clk
0:00:19.4]} 39. Rxe1 {[%clk 0:00:34.6]} 39... Rxe1 {[%clk 0:00:20.3]} 40. Kxe1
{[%clk 0:00:34.8]} 40... a6 {[%clk 0:00:19.2]} 41. Nd4 {[%clk 0:00:30.6]} 41...
Rb8 {[%clk 0:00:16.3]} 42. Be2 {[%clk 0:00:24.9]} 42... Rb1+ {[%clk 0:00:14.7]}
43. Kf2 {[%clk 0:00:21.7]} 43... Rb2 {[%clk 0:00:15.6]} 44. Ke1 {[%clk
0:00:19.7]} 44... Ne5 {[%clk 0:00:14.6]} 45. Bxa6 {[%clk 0:00:17.5]} 45... Rxa2
{[%clk 0:00:15.2]} 46. Bc8 {[%clk 0:00:17.2]} 46... Nd3+ {[%clk 0:00:13.8]} 47.
Kf1 {[%clk 0:00:16.3]} 47... Kf6 {[%clk 0:00:14.7]} 48. g4 {[%clk 0:00:16.1]}
48... Ke5 {[%clk 0:00:13.5]} 49. Nb5 {[%clk 0:00:11.3]} 49... Kf4 {[%clk
0:00:11.7]} 50. Nc3 {[%clk 0:00:08.8]} 50... Rc2 {[%clk 0:00:08.3]} 51. Ne2+
{[%clk 0:00:08.7]} 51... Ke3 {[%clk 0:00:08.9]} 52. Ng3 {[%clk 0:00:04]} 52...
Rc1+ {[%clk 0:00:09.3]} 53. Kg2 {[%clk 0:00:02.9]} 53... Nf4+ {[%clk 0:00:10.2]}
54. Kh2 {[%clk 0:00:02.3]} 54... Rc2+ {[%clk 0:00:11.1]} 55. Kh1 {[%clk
0:00:01.7]} 55... Rc1+ {[%clk 0:00:09.3]} 56. Kh2 {[%clk 0:00:01.7]} 56... Rc2+
{[%clk 0:00:10.2]} 57. Kh1 {[%clk 0:00:02]} 57... Rxc8 {[%clk 0:00:11.1]} 58.
Nf5+ {[%clk 0:00:01.7]} 58... Kf2 {[%clk 0:00:11.3]} 59. Nxd6 {[%clk 0:00:02.6]}
59... Rh8# {[%clk 0:00:11.8]} 0-1

[Event "Early-Titled-Tuesday-Blitz-February-13-2024"]
[Site "Chess.com"]
[Date "2024.02.13"]
[Round "8"]
[White "Zurability"]
[Black "sotochess"]
[Result "1-0"]
[WhiteElo "2753"]
[BlackElo "2559"]
[TimeControl "180+1"]
[EndTime "9:33:08 PST"]
[Termination "Zurability won by resignation"]

1. e4 {[%clk 0:03:00.9]} 1... d5 {[%clk 0:02:58.6]} 2. exd5 {[%clk 0:02:59.3]}
2... Qxd5 {[%clk 0:02:59.5]} 3. Nc3 {[%clk 0:02:59.4]} 3... Qa5 {[%clk
0:02:59.3]} 4. d4 {[%clk 0:02:57.1]} 4... c6 {[%clk 0:02:57.4]} 5. Bc4 {[%clk
0:02:56.1]} 5... Nf6 {[%clk 0:02:57]} 6. Nf3 {[%clk 0:02:52.5]} 6... Bg4 {[%clk
0:02:54]} 7. h3 {[%clk 0:02:51.6]} 7... Bh5 {[%clk 0:02:53.7]} 8. g4 {[%clk
0:02:34.1]} 8... Bg6 {[%clk 0:02:53.3]} 9. Ne5 {[%clk 0:02:34.7]} 9... Nbd7
{[%clk 0:02:53.1]} 10. Nxg6 {[%clk 0:02:31]} 10... hxg6 {[%clk 0:02:52.4]} 11.
Qd3 {[%clk 0:02:16.2]} 11... Nxg4 {[%clk 0:02:35.8]} 12. Rg1 {[%clk 0:01:47.8]}
12... Ngf6 {[%clk 0:02:23.3]} 13. Rg5 {[%clk 0:01:39.8]} 13... Qc7 {[%clk
0:02:08.5]} 14. Bd2 {[%clk 0:01:20]} 14... e6 {[%clk 0:02:07.6]} 15. O-O-O
{[%clk 0:01:15.3]} 15... O-O-O {[%clk 0:02:06.6]} 16. Ne2 {[%clk 0:01:10.4]}
16... Nd5 {[%clk 0:01:59.3]} 17. Bb3 {[%clk 0:01:03.8]} 17... N7f6 {[%clk
0:01:34.8]} 18. c4 {[%clk 0:01:00.1]} 18... Nb4 {[%clk 0:01:34.1]} 19. Qf3
{[%clk 0:00:54.7]} 19... Na6 {[%clk 0:01:12.8]} 20. Ba5 {[%clk 0:00:50.4]} 20...
b6 {[%clk 0:01:09.6]} 21. Bc3 {[%clk 0:00:45]} 21... Bb4 {[%clk 0:01:02.6]} 22.
Kb1 {[%clk 0:00:31.2]} 22... Bxc3 {[%clk 0:01:02.1]} 23. Nxc3 {[%clk 0:00:31.1]}
23... Kb8 {[%clk 0:00:33.2]} 24. Ba4 {[%clk 0:00:27.7]} 24... Rh4 {[%clk
0:00:25.9]} 25. Bxc6 {[%clk 0:00:22.8]} 25... Nb4 {[%clk 0:00:20.3]} 26. d5
{[%clk 0:00:14.1]} 26... Nxc6 {[%clk 0:00:18.6]} 27. dxc6 {[%clk 0:00:13]} 27...
Rxd1+ {[%clk 0:00:18.9]} 28. Qxd1 {[%clk 0:00:07.8]} 28... Rxc4 {[%clk
0:00:18.5]} 29. Nb5 {[%clk 0:00:05.7]} 29... Qxc6 {[%clk 0:00:18.5]} 30. Qd8+
{[%clk 0:00:06]} 30... Kb7 {[%clk 0:00:17.7]} 31. Nd6+ {[%clk 0:00:05.9]} 31...
Ka6 {[%clk 0:00:17.5]} 32. Nxc4 {[%clk 0:00:06.1]} 32... Qxc4 {[%clk 0:00:18.4]}
33. Qd1 {[%clk 0:00:05.5]} 33... Ne4 {[%clk 0:00:18.1]} 34. Rg1 {[%clk
0:00:04.9]} 34... Nxf2 {[%clk 0:00:17.5]} 35. Qf3 {[%clk 0:00:02.8]} 35... Qe4+
{[%clk 0:00:16.3]} 36. Qxe4 {[%clk 0:00:03]} 36... Nxe4 {[%clk 0:00:17.2]} 37.
Re1 {[%clk 0:00:02.9]} 37... f5 {[%clk 0:00:16.7]} 38. Kc2 {[%clk 0:00:03.5]}
38... g5 {[%clk 0:00:16.7]} 39. Kd3 {[%clk 0:00:03.4]} 39... Kb5 {[%clk
0:00:16.7]} 40. Kd4 {[%clk 0:00:03.3]} 40... Kc6 {[%clk 0:00:16.5]} 41. Ke5
{[%clk 0:00:03.6]} 41... Kd7 {[%clk 0:00:17]} 42. Rd1+ {[%clk 0:00:03.6]} 42...
Ke7 {[%clk 0:00:17]} 43. Rc1 {[%clk 0:00:04]} 43... Kd7 {[%clk 0:00:17.3]} 44.
Rd1+ {[%clk 0:00:04.1]} 44... Ke7 {[%clk 0:00:17.2]} 45. b4 {[%clk 0:00:04.7]}
45... a6 {[%clk 0:00:16.9]} 46. Rc1 {[%clk 0:00:03.6]} 46... Kd7 {[%clk
0:00:16.8]} 47. Rc2 {[%clk 0:00:04.2]} 47... g6 {[%clk 0:00:16.6]} 48. a4 {[%clk
0:00:03.9]} 48... Kd8 {[%clk 0:00:16.4]} 49. Kxe6 {[%clk 0:00:03.4]} 49... g4
{[%clk 0:00:16.3]} 50. hxg4 {[%clk 0:00:03.6]} 50... fxg4 {[%clk 0:00:17.2]} 51.
Rg2 {[%clk 0:00:03.6]} 51... g3 {[%clk 0:00:17.2]} 52. Ke5 {[%clk 0:00:04.2]}
52... Nc3 {[%clk 0:00:17.1]} 53. a5 {[%clk 0:00:04.8]} 53... bxa5 {[%clk
0:00:17.2]} 54. bxa5 {[%clk 0:00:05.7]} 54... Nb5 {[%clk 0:00:16.9]} 55. Rxg3
{[%clk 0:00:06.1]} 55... Kc7 {[%clk 0:00:17.8]} 56. Kd5 {[%clk 0:00:05.7]} 56...
Na7 {[%clk 0:00:18.7]} 57. Rxg6 {[%clk 0:00:05.2]} 57... Kb7 {[%clk 0:00:19.6]}
58. Rg7+ {[%clk 0:00:05.1]} 58... Kb8 {[%clk 0:00:19.7]} 59. Kc5 {[%clk
0:00:05.4]} 59... Nc8 {[%clk 0:00:20.6]} 60. Kc6 {[%clk 0:00:05.6]} 60... Na7+
{[%clk 0:00:20.7]} 61. Kb6 {[%clk 0:00:06.1]} 61... Nc8+ {[%clk 0:00:21.6]} 62.
Kxa6 {[%clk 0:00:06.6]} 62... Nd6 {[%clk 0:00:21.7]} 63. Kb6 {[%clk 0:00:05.4]}
1-0

[Event "Early-Titled-Tuesday-Blitz-February-13-2024"]
[Site "Chess.com"]
[Date "2024.02.13"]
[Round "8"]
[White "kikoveiga"]
[Black "abelmat"]
[Result "1-0"]
[WhiteElo "2527"]
[BlackElo "2081"]
[TimeControl "180+1"]
[EndTime "9:33:09 PST"]
[Termination "kikoveiga won on time"]

1. c4 {[%clk 0:02:59]} 1... Nf6 {[%clk 0:02:59.2]} 2. Nc3 {[%clk 0:02:57.3]}
2... e6 {[%clk 0:03:00.1]} 3. e4 {[%clk 0:02:57.4]} 3... d5 {[%clk 0:03:00.9]}
4. e5 {[%clk 0:02:57.9]} 4... Nfd7 {[%clk 0:02:57.4]} 5. d4 {[%clk 0:02:55.4]}
5... dxc4 {[%clk 0:02:41.1]} 6. Bxc4 {[%clk 0:02:56.3]} 6... Nb6 {[%clk
0:02:36.7]} 7. Bb3 {[%clk 0:02:53.4]} 7... Be7 {[%clk 0:02:35.6]} 8. Nf3 {[%clk
0:02:53.2]} 8... O-O {[%clk 0:02:32.7]} 9. O-O {[%clk 0:02:53.3]} 9... Bd7
{[%clk 0:02:26.8]} 10. Be3 {[%clk 0:02:51]} 10... Bc6 {[%clk 0:02:25]} 11. a4
{[%clk 0:02:46.8]} 11... Nd5 {[%clk 0:02:22.1]} 12. a5 {[%clk 0:02:44]} 12...
Na6 {[%clk 0:02:18.5]} 13. Qe2 {[%clk 0:02:37.2]} 13... Nab4 {[%clk 0:02:16.9]}
14. Rfc1 {[%clk 0:02:35.7]} 14... Nxe3 {[%clk 0:02:13.2]} 15. fxe3 {[%clk
0:02:34.7]} 15... a6 {[%clk 0:02:07.6]} 16. e4 {[%clk 0:02:23.4]} 16... h6
{[%clk 0:01:54.5]} 17. Rd1 {[%clk 0:02:21.8]} 17... Qe8 {[%clk 0:01:52]} 18. d5
{[%clk 0:02:13.7]} 18... Bd7 {[%clk 0:01:29.9]} 19. Kh1 {[%clk 0:02:05.5]} 19...
Bc5 {[%clk 0:01:21.7]} 20. Qc4 {[%clk 0:02:01.3]} 20... b6 {[%clk 0:01:15.2]}
21. axb6 {[%clk 0:01:57.1]} 21... cxb6 {[%clk 0:01:14.8]} 22. Rac1 {[%clk
0:01:43.3]} 22... Rc8 {[%clk 0:01:11.5]} 23. Qe2 {[%clk 0:01:42.4]} 23... exd5
{[%clk 0:01:01.9]} 24. exd5 {[%clk 0:01:41.4]} 24... Bg4 {[%clk 0:01:01.9]} 25.
Re1 {[%clk 0:01:20.5]} 25... Rd8 {[%clk 0:00:52.7]} 26. Rcd1 {[%clk 0:01:19.7]}
26... a5 {[%clk 0:00:37.8]} 27. d6 {[%clk 0:01:17.9]} 27... Qc6 {[%clk
0:00:20.5]} 28. Nd5 {[%clk 0:01:14.9]} 28... Nxd5 {[%clk 0:00:13.8]} 29. Bxd5
{[%clk 0:01:15.8]} 29... Qa4 {[%clk 0:00:11.8]} 30. b3 {[%clk 0:01:00.1]} 30...
Qf4 {[%clk 0:00:10.7]} 31. Rf1 {[%clk 0:00:53]} 31... Kh8 {[%clk 0:00:08.3]} 32.
h3 {[%clk 0:00:46.8]} 32... Bh5 {[%clk 0:00:07.3]} 33. Qc4 {[%clk 0:00:42.3]}
33... Qg3 {[%clk 0:00:05]} 34. Qh4 {[%clk 0:00:33.8]} 34... Qxh4 {[%clk
0:00:03.7]} 35. Nxh4 {[%clk 0:00:34.7]} 35... Bxd1 {[%clk 0:00:03.6]} 36. Rxd1
{[%clk 0:00:34.2]} 36... Bxd6 {[%clk 0:00:02.9]} 37. exd6 {[%clk 0:00:32.7]}
37... Rxd6 {[%clk 0:00:03.3]} 38. Nf5 {[%clk 0:00:28.7]} 38... Rd7 {[%clk
0:00:02.6]} 39. Ne3 {[%clk 0:00:28.5]} 39... Rfd8 {[%clk 0:00:02.6]} 40. Kg1
{[%clk 0:00:27.1]} 40... f5 {[%clk 0:00:02.6]} 41. g3 {[%clk 0:00:22.5]} 41...
g5 {[%clk 0:00:02.6]} 42. Bf3 {[%clk 0:00:20.3]} 42... f4 {[%clk 0:00:03.4]} 43.
Rxd7 {[%clk 0:00:19.7]} 43... Rxd7 {[%clk 0:00:03.1]} 44. gxf4 {[%clk
0:00:20.6]} 44... gxf4 {[%clk 0:00:03.3]} 45. Nd5 {[%clk 0:00:21.1]} 45... Ra7
{[%clk 0:00:02.2]} 46. Nxb6 {[%clk 0:00:19.8]} 46... a4 {[%clk 0:00:03.1]} 47.
Nxa4 {[%clk 0:00:19.9]} 47... Rc7 {[%clk 0:00:03.4]} 48. Kf2 {[%clk 0:00:07.7]}
48... Rc2+ {[%clk 0:00:03.6]} 49. Be2 {[%clk 0:00:08.2]} 49... Kg7 {[%clk
0:00:02.2]} 50. Kf3 {[%clk 0:00:08.6]} 50... Kf6 {[%clk 0:00:01.8]} 51. Bd3
{[%clk 0:00:07.8]} 1-0